bitfinex/quotes_SOLUSD_20230105
["timestamp","ask_amount","ask_price","bid_price","bid_amount"]
[1672936821272,20.0,13.159,13.148,57.09]
[1672936821483,99.45737149,13.159,13.148,57.09]
[1672936821711,42.41737149,13.159,13.148,57.09]
[1672936822555,17.0,13.158,13.148,57.09]
[1672936826985,22.41737149,13.159,13.148,57.09]
[1672936831694,22.41737149,13.159,13.149,17.0]
[1672936832003,234.94596738,13.16,13.149,17.0]
[1672936832423,182.48596738,13.16,13.15,57.08]
[1672936832645,13.09,13.16,13.151,17.0]
[1672936832848,13.09,13.16,13.152,57.07]
[1672936833072,13.09,13.16,13.153,37.0]
[1672936833266,13.09,13.16,13.154,57.06]
[1672936833473,13.09,13.16,13.155,17.0]
[1672936834311,97.01754295,13.166,13.156,20.0]
[1672936834528,56.99,13.169,13.157,74.05]
[1672936835807,65.75,13.17,13.157,74.05]
[1672936837781,20.0,13.168,13.157,74.05]
[1672936837991,20.0,13.168,13.157,57.05]
[1672936838206,20.0,13.168,13.152,57.07]
[1672936838530,6.56,13.16,13.153,37.0]
[1672936838733,6.56,13.16,13.154,171.501]
[1672936839060,6.56,13.16,13.155,17.0]
[1672936839256,6.56,13.16,13.156,57.05]
[1672936839469,20.0,13.168,13.157,17.0]
[1672936839692,20.0,13.168,13.158,57.04]
[1672936840728,20.0,13.168,13.159,17.0]
[1672936842112,20.0,13.168,13.158,17.0]
[1672936844510,76.99,13.169,13.158,17.0]
[1672936845139,76.99,13.169,13.157,57.05]
[1672936845347,17.0,13.168,13.157,57.05]
[1672936845686,20.0,13.167,13.157,57.05]
[1672936846508,20.0,13.167,13.158,17.0]
[1672936850929,77.0,13.167,13.154,57.06]
[1672936851139,77.0,13.167,13.133,99.01960918]
[1672936851140,6.56,13.16,13.148,57.09]
[1672936851355,6.56,13.16,13.147,170.6705]
[1672936852400,6.56,13.16,13.149,20.0]
[1672936852611,6.56,13.16,13.15,74.08]
[1672936854617,6.56,13.16,13.15,57.08]
[1672936854931,6.56,13.16,13.148,57.09]
[1672936855244,26.56,13.16,13.148,57.09]
[1672936855457,109.87,13.16,13.148,57.09]
[1672936856616,89.87,13.16,13.148,57.09]
[1672936856828,32.84,13.16,13.149,17.0]
[1672936857015,32.84,13.16,13.15,57.08]
[1672936860391,32.84,13.16,13.151,17.0]
[1672936860801,32.84,13.16,13.15,74.08]
[1672936861131,32.84,13.16,13.151,20.0]
[1672936861335,6.53,13.16,13.151,20.0]
[1672936861541,6.53,13.16,13.152,74.07]
[1672936862169,6.53,13.16,13.152,17.0]
[1672936862402,6.53,13.16,13.151,17.0]
[1672936862709,6.53,13.16,13.152,57.07]
[1672936862910,6.53,13.16,13.153,17.0]
[1672936863323,6.53,13.16,13.152,74.07]
[1672936871118,56.99,13.169,13.152,74.07]
[1672936871323,56.99,13.169,13.154,20.0]
[1672936871654,56.99,13.169,13.156,20.0]
[1672936871854,56.99,13.169,13.157,74.05]
[1672936873003,56.99,13.169,13.157,17.0]
[1672936873211,56.99,13.169,13.157,20.0]
[1672936873426,56.99,13.169,13.158,17.0]
[1672936874184,89.84,13.17,13.158,17.0]
[1672936876905,89.84,13.17,13.157,57.05]
[1672936877110,89.84,13.17,13.156,20.0]
[1672936877313,89.84,13.17,13.158,20.0]
[1672936878086,89.84,13.17,13.158,40.78953814]
[1672936878402,32.85,13.17,13.16,20.0]
[1672936878718,6.6,13.17,13.162,20.0]
[1672936879029,6.6,13.17,13.163,17.0]
[1672936879860,6.6,13.17,13.162,17.0]
[1672936884789,6.6,13.17,13.164,20.0]
[1672936885118,6.6,13.17,13.165,17.0]
[1672936885330,6.6,13.17,13.164,17.0]
[1672936889539,6.6,13.17,13.159,57.04]
[1672936889933,6.6,13.17,13.159,77.82953814]
[1672936890142,6.6,13.17,13.16,20.0]
[1672936890352,6.6,13.17,13.161,57.03]
[1672936890584,6.6,13.17,13.162,20.0]
[1672936890795,6.6,13.17,13.163,74.02]
[1672936891203,6.6,13.17,13.163,17.0]
[1672936893096,6.6,13.17,13.157,57.05]
[1672936893306,6.6,13.17,13.159,20.78953814]
[1672936893510,6.6,13.17,13.16,57.03]
[1672936894054,6.6,13.17,13.16,77.81953814]
[1672936894457,6.6,13.17,13.161,17.0]
[1672936894788,6.6,13.17,13.162,57.03]
[1672936894997,6.6,13.17,13.163,17.0]
[1672936895523,6.6,13.17,13.162,17.0]
[1672936897729,6.6,13.17,13.164,20.0]
[1672936897922,213.22945835,13.191,13.164,20.0]
[1672936897923,56.95,13.179,13.166,20.0]
[1672936898133,6.53,13.18,13.167,74.0]
[1672936898347,6.53,13.18,13.168,20.0]
[1672936898557,6.53,13.18,13.169,73.99]
[1672936898973,100.8237,13.181,13.17,20.0]
[1672936899190,6.57,13.18,13.171,73.99]
[1672936899605,6.57,13.18,13.171,94.77953814]
[1672936904553,6.57,13.18,13.171,56.99]
[1672936904774,6.57,13.18,13.17,20.0]
[1672936904961,6.57,13.18,13.172,20.0]
[1672936905822,6.57,13.18,13.173,17.0]
[1672936906868,56.92,13.187,13.175,20.0]
[1672936907057,169.8976,13.189,13.177,20.0]
[1672936907494,169.8976,13.189,13.178,17.0]
[1672936907900,112.9876,13.189,13.178,17.0]
[1672936909496,112.9876,13.189,13.179,20.0]
[1672936909692,112.9876,13.189,13.18,17.0]
[1672936910114,112.9876,13.189,13.181,20.0]
[1672936910852,112.9876,13.189,13.182,17.0]
[1672936911051,6.52,13.19,13.182,17.0]
[1672936911697,6.52,13.19,13.181,17.0]
[1672936912443,6.52,13.19,13.18,77.73953814]
[1672936912864,32.72,13.19,13.18,56.95]
[1672936913182,32.72,13.19,13.174,115.4068]
[1672936913183,32.72,13.19,13.177,56.96]
[1672936913390,32.72,13.19,13.175,20.78953814]
[1672936913391,17.0,13.189,13.175,56.97]
[1672936913609,76.91,13.188,13.175,56.97]
[1672936913823,20.0,13.186,13.175,56.97]
[1672936914647,128.4337,13.188,13.175,56.97]
[1672936914962,20.0,13.186,13.16,120.0979]
[1672936915175,32.89,13.18,13.165,116.9129]
[1672936915377,32.89,13.18,13.167,134.34743814]
[1672936915605,32.89,13.18,13.168,57.0]
[1672936915806,32.89,13.18,13.169,20.0]
[1672936916027,32.89,13.18,13.17,56.99]
[1672936916435,32.89,13.18,13.171,17.0]
[1672936920762,32.89,13.18,13.171,37.78953814]
[1672936926439,32.89,13.18,13.172,56.98]
[1672936926627,32.89,13.18,13.173,17.0]
[1672936928114,6.6,13.18,13.173,17.0]
[1672936928507,13.11,13.18,13.173,17.0]
[1672936929274,13.11,13.18,13.172,17.0]
[1672936933236,13.11,13.18,13.171,73.99]
[1672936933451,13.11,13.18,13.171,17.0]
[1672936935687,13.11,13.18,13.173,20.0]
[1672936935894,56.92,13.187,13.173,20.0]
[1672936935895,165.5991,13.189,13.174,93.97]
[1672936936212,165.5991,13.189,13.174,227.81083814]
[1672936936404,165.5991,13.189,13.175,20.78953814]
[1672936936619,165.5991,13.189,13.177,20.0]
[1672936937045,165.5991,13.189,13.178,17.0]
[1672936938613,108.6891,13.189,13.178,17.0]
[1672936938823,108.6891,13.189,13.177,73.96]
[1672936939046,108.6891,13.189,13.178,20.0]
[1672936939260,108.6891,13.189,13.179,17.0]
[1672936939878,108.6891,13.189,13.178,17.0]
[1672936941474,108.6891,13.189,13.179,56.95]
[1672936941678,108.6891,13.189,13.18,17.0]
[1672936941876,108.6891,13.189,13.178,17.0]
[1672936946390,108.6891,13.189,13.178,20.0]
[1672936946606,108.6891,13.189,13.179,17.0]
[1672936947654,108.6891,13.189,13.178,17.0]
[1672936950075,108.6891,13.189,13.179,20.0]
[1672936950285,108.6891,13.189,13.18,17.0]
[1672936951967,6.55,13.19,13.181,76.94]
[1672936952182,6.55,13.19,13.182,37.0]
[1672936952387,6.55,13.19,13.184,20.0]
[1672936952596,6.55,13.19,13.185,37.0]
[1672936952823,56.89,13.194,13.185,37.0]
[1672936953020,56.87,13.198,13.185,37.0]
[1672936953236,22.41737149,13.196,13.185,37.0]
[1672936953567,169.3276,13.195,13.185,37.0]
[1672936955542,169.3276,13.195,13.186,20.0]
[1672936955761,112.4476,13.195,13.187,17.0]
[1672936956182,112.4476,13.195,13.186,17.0]
[1672936959868,56.87,13.198,13.186,17.0]
[1672936960511,76.87,13.198,13.186,17.0]
[1672936962631,20.0,13.197,13.185,131.3529]
[1672936962833,56.88,13.196,13.185,131.3529]
[1672936963155,20.0,13.195,13.185,131.3529]
[1672936963979,20.0,13.195,13.186,17.0]
[1672936964412,20.0,13.195,13.185,131.3529]
[1672936965661,42.41737149,13.195,13.181,112.7789]
[1672936965871,32.62,13.19,13.176,113.4036]
[1672936966196,79.32737149,13.189,13.176,113.4036]
[1672936966519,20.0,13.188,13.177,56.96]
[1672936967992,89.40508533,13.189,13.177,56.96]
[1672936968403,89.40508533,13.189,13.178,17.0]
[1672936970102,32.62,13.19,13.179,20.0]
[1672936970285,89.52,13.19,13.18,17.0]
[1672936970709,32.62,13.19,13.179,17.0]
[1672936971146,89.52,13.19,13.179,17.0]
[1672936971338,89.52,13.19,13.178,17.0]
[1672936975220,37.0,13.189,13.178,17.0]
[1672936975429,37.0,13.189,13.177,17.0]
[1672936975744,37.0,13.189,13.176,113.4036]
[1672936975958,20.0,13.187,13.176,113.4036]
[1672936977242,20.0,13.187,13.177,17.0]
[1672936977766,296.33528533,13.189,13.177,17.0]
[1672936979973,345.84409776,13.189,13.169,56.99]
[1672936980165,6.55,13.18,13.175,20.0]
[1672936980377,345.84409776,13.189,13.175,20.0]
[1672936984269,20.0,13.187,13.169,110.2017]
[1672936984483,32.62,13.18,13.169,110.2017]
[1672936985114,20.0,13.179,13.169,110.2017]
[1672936986604,32.62,13.18,13.169,110.2017]
[1672936986800,32.62,13.18,13.171,20.0]
[1672936987011,32.62,13.18,13.172,17.0]
[1672936987444,32.62,13.18,13.171,17.0]
[1672936990924,6.5,13.18,13.173,20.0]
[1672936991114,56.91,13.188,13.175,20.0]
[1672936991554,76.91,13.188,13.176,17.0]
[1672936992077,56.91,13.188,13.176,17.0]
[1672936992481,118.2793,13.189,13.178,20.0]
[1672936992696,118.2793,13.189,13.179,17.0]
[1672936995428,118.2793,13.189,13.178,73.96]
[1672936996174,118.2793,13.189,13.178,56.96]
[1672936997438,118.2793,13.189,13.179,17.0]
[1672936997760,118.2793,13.189,13.178,73.96]
[1672937002489,13.03,13.19,13.178,73.96]
[1672937002699,13.03,13.19,13.18,20.0]
[1672937003036,13.03,13.19,13.182,20.0]
[1672937003228,13.03,13.19,13.183,93.93]
[1672937003561,20.0,13.196,13.183,93.93]
[1672937003753,56.87,13.197,13.183,93.93]
[1672937005138,20.0,13.198,13.184,20.0]
[1672937005139,56.87,13.198,13.184,20.0]
[1672937005448,20.0,13.197,13.185,93.93]
[1672937006060,17.0,13.196,13.185,37.0]
[1672937007224,76.87,13.198,13.185,37.0]
[1672937007441,200.34181866,13.199,13.185,37.0]
[1672937007651,177.92444717,13.199,13.187,20.0]
[1672937007968,177.92444717,13.199,13.188,130.3888]
[1672937008604,115.095,13.199,13.188,130.3888]
[1672937009013,115.095,13.199,13.189,20.0]
[1672937009349,13.05,13.2,13.19,17.0]
[1672937010576,13.05,13.2,13.191,97.13372285]
[1672937010813,13.05,13.2,13.193,20.0]
[1672937011020,13.05,13.2,13.194,93.89]
[1672937011950,13.05,13.2,13.195,20.0]
[1672937012160,113.4171,13.205,13.195,20.0]
[1672937012913,113.4171,13.205,13.196,17.0]
[1672937013847,113.4171,13.205,13.191,56.9]
[1672937014053,13.03,13.2,13.189,56.91]
[1672937015022,13.03,13.2,13.19,20.0]
[1672937015336,13.03,13.2,13.192,20.0]
[1672937015539,13.03,13.2,13.194,20.0]
[1672937015749,13.03,13.2,13.193,76.89]
[1672937015966,13.03,13.2,13.194,17.0]
[1672937016394,13.03,13.2,13.195,20.0]
[1672937016602,113.4171,13.205,13.195,20.0]
[1672937017320,170.2571,13.205,13.195,20.0]
[1672937017971,113.4171,13.205,13.195,20.0]
[1672937018475,113.4171,13.205,13.196,17.0]
[1672937023726,113.4171,13.205,13.196,16.9215155]
[1672937023937,20.0,13.204,13.196,16.9215155]
[1672937025641,20.0,13.204,13.195,138.7461]
[1672937026603,20.0,13.204,13.19,56.9]
[1672937026800,13.0,13.2,13.189,56.91]
[1672937027437,33.0,13.2,13.189,56.91]
[1672937027649,33.0,13.2,13.184,40.23372285]
[1672937027650,33.0,13.2,13.185,56.93]
[1672937027854,13.0,13.2,13.185,56.93]
[1672937028063,20.0,13.199,13.189,56.91]
[1672937028688,20.0,13.199,13.19,17.0]
[1672937030914,20.0,13.199,13.189,56.91]
[1672937031228,20.0,13.199,13.185,56.93]
[1672937031437,32.8,13.2,13.189,73.91]
[1672937031745,32.8,13.2,13.189,17.0]
[1672937032483,32.8,13.2,13.189,73.91]
[1672937040397,32.8,13.2,13.189,56.91]
[1672937041959,6.6,13.2,13.191,20.0]
[1672937042174,6.6,13.2,13.192,93.89]
[1672937042700,6.6,13.2,13.193,20.0]
[1672937042912,6.6,13.2,13.194,37.0]
[1672937044476,6.6,13.2,13.194,93.89]
[1672937044681,6.6,13.2,13.194,37.0]
[1672937046803,6.6,13.2,13.194,20.0]
[1672937047013,6.6,13.2,13.193,20.0]
[1672937047230,6.6,13.2,13.194,56.89]
[1672937047433,6.6,13.2,13.195,20.0]
[1672937047652,113.4171,13.205,13.195,20.0]
[1672937047863,37.0,13.204,13.195,20.0]
[1672937048173,113.4171,13.205,13.193,40.0]
[1672937048384,6.51,13.2,13.193,40.0]
[1672937048598,6.51,13.2,13.193,20.0]
[1672937048807,6.51,13.2,13.194,17.0]
[1672937049020,6.51,13.2,13.195,20.0]
[1672937049218,20.0,13.204,13.195,20.0]
[1672937049428,20.0,13.202,13.195,20.0]
[1672937049639,20.0,13.202,13.193,20.0]
[1672937049964,6.48,13.2,13.193,20.0]
[1672937050162,6.48,13.2,13.194,56.89]
[1672937050358,6.48,13.2,13.195,20.0]
[1672937050573,20.0,13.204,13.193,20.0]
[1672937050799,6.51,13.2,13.194,17.0]
[1672937051009,6.51,13.2,13.195,20.0]
[1672937051330,20.0,13.204,13.195,20.0]
[1672937052592,113.4171,13.205,13.195,20.0]
[1672937053117,20.0,13.204,13.195,20.0]
[1672937055092,20.0,13.204,13.192,20.0]
[1672937055302,6.54,13.2,13.193,56.89]
[1672937055727,6.54,13.2,13.194,20.0]
[1672937055932,6.54,13.2,13.195,17.0]
[1672937056158,113.4171,13.205,13.195,17.0]
[1672937057012,113.4171,13.205,13.195,127.006]
[1672937059428,113.4171,13.205,13.195,110.006]
[1672937060780,20.0,13.204,13.195,110.006]
[1672937063933,49.02781243,13.207,13.196,37.0]
[1672937064157,49.02781243,13.207,13.196,17.0]
[1672937064357,49.02781243,13.207,13.197,56.87]
[1672937064568,49.02781243,13.207,13.198,17.0]
[1672937064988,49.02781243,13.207,13.196,56.88]
[1672937065205,20.0,13.206,13.195,280.5435]
[1672937065415,17.0,13.205,13.195,280.5435]
[1672937067511,20.0,13.207,13.195,280.5435]
[1672937067722,20.0,13.207,13.196,17.0]
[1672937070267,20.0,13.208,13.196,17.0]
[1672937070477,20.0,13.206,13.196,17.0]
[1672937070880,17.0,13.207,13.196,17.0]
[1672937076667,39.41737149,13.207,13.195,280.5435]
[1672937076891,96.24737149,13.207,13.195,280.5435]
[1672937077087,39.41737149,13.207,13.195,280.5435]
[1672937081410,39.41737149,13.207,13.196,17.0]
[1672937081802,17.0,13.207,13.196,17.0]
[1672937082455,37.0,13.207,13.2,50.0]
[1672937082978,17.0,13.207,13.2,50.0]
[1672937084466,37.0,13.207,13.2,50.0]
[1672937087382,17.0,13.207,13.2,50.0]
[1672937087585,20.0,13.207,13.2,50.0]
[1672937088432,20.0,13.208,13.2,50.0]
[1672937089585,220.8567,13.209,13.2,50.0]
[1672937089797,37.0,13.208,13.2,50.0]
[1672937092024,17.0,13.208,13.2,50.0]
[1672937092240,220.8567,13.209,13.2,50.0]
[1672937096542,32.73,13.21,13.2,50.0]
[1672937096732,32.73,13.21,13.201,17.0]
[1672937097155,32.73,13.21,13.2,50.0]
[1672937097486,32.73,13.21,13.201,17.0]
[1672937098117,32.73,13.21,13.2,50.0]
[1672937098961,20.0,13.208,13.2,50.0]
[1672937100410,17.0,13.207,13.2,50.0]
[1672937100617,122.85781243,13.207,13.2,50.0]
[1672937100824,128.85715649,13.206,13.2,50.0]
[1672937101061,17.0,13.205,13.2,50.0]
[1672937101271,66.02781243,13.205,13.2,50.0]
[1672937101669,20.0,13.204,13.2,50.0]
[1672937102734,20.0,13.202,13.2,50.0]
[1672937103143,169.63016578,13.201,13.2,50.0]
[1672937103571,20.6453,13.2,13.189,56.91]
[1672937103778,113.15464406,13.2,13.189,56.91]
[1672937103982,162.18245649,13.2,13.189,56.91]
[1672937105355,20.0,13.198,13.189,56.91]
[1672937106713,20.0,13.198,13.184,56.93]
[1672937108303,20.0,13.198,13.189,56.91]
[1672937109440,17.0,13.197,13.189,56.91]
[1672937109651,17.0,13.197,13.185,56.92]
[1672937109652,20.0,13.196,13.185,56.92]
[1672937109883,20.0,13.194,13.184,56.93]
[1672937111650,6.54,13.19,13.185,20.0]
[1672937111859,20.0,13.192,13.186,56.92]
[1672937112176,20.0,13.192,13.185,20.0]
[1672937114503,20.0,13.194,13.185,20.0]
[1672937119013,17.0,13.193,13.185,20.0]
[1672937121335,20.0,13.195,13.185,20.0]
[1672937121529,17.0,13.194,13.185,20.0]
[1672937124473,109.80082172,13.197,13.185,20.0]
[1672937124474,17.0,13.195,13.185,20.0]
[1672937126901,63.31442246,13.196,13.186,17.0]
[1672937127100,49.02781243,13.197,13.187,20.0]
[1672937127423,63.31442246,13.199,13.187,20.0]
[1672937127621,112.34223489,13.199,13.187,20.0]
[1672937128044,112.34223489,13.199,13.188,17.0]
[1672937128259,112.34223489,13.199,13.189,56.91]
[1672937129660,63.31442246,13.198,13.188,116.2129]
[1672937130481,37.0,13.197,13.188,116.2129]
[1672937131108,63.31442246,13.198,13.188,116.2129]
[1672937132668,63.31442246,13.198,13.189,56.91]
[1672937134359,20.0,13.197,13.188,116.2129]
[1672937134684,63.31442246,13.198,13.189,56.91]
[1672937135526,63.31442246,13.198,13.188,116.2129]
[1672937135833,63.31442246,13.198,13.189,17.0]
[1672937139294,63.31442246,13.198,13.188,116.2129]
[1672937149919,83.31442246,13.198,13.188,116.2129]
[1672937150121,144.08743175,13.198,13.188,116.2129]
[1672937150338,37.0,13.197,13.188,116.2129]
[1672937151279,124.08743175,13.198,13.188,116.2129]
[1672937151495,124.08743175,13.198,13.189,17.0]
[1672937154351,124.08743175,13.198,13.188,116.2129]
[1672937156666,20.0,13.197,13.188,116.2129]
[1672937158036,76.87,13.197,13.188,116.2129]
[1672937158977,56.87,13.197,13.188,116.2129]
[1672937159170,180.95743175,13.198,13.188,116.2129]
[1672937161083,124.08743175,13.198,13.188,116.2129]
[1672937169783,78.14394246,13.197,13.188,116.2129]
[1672937169995,20.0,13.196,13.188,116.2129]
[1672937172937,138.91695175,13.197,13.188,116.2129]
[1672937173899,121.91695175,13.197,13.188,116.2129]
[1672937174101,61.14394246,13.197,13.188,116.2129]
[1672937174748,61.14394246,13.197,13.189,17.0]
[1672937181575,61.14394246,13.197,13.188,116.2129]
[1672937185791,20.0,13.196,13.188,116.2129]
[1672937186035,20.0,13.196,13.186,56.92]
[1672937186221,20.0,13.196,13.185,20.0]
[1672937186530,17.0,13.195,13.185,20.0]
[1672937187791,20.0,13.196,13.185,20.0]
[1672937187986,20.0,13.196,13.186,73.92]
[1672937188640,61.14394246,13.197,13.186,73.92]
[1672937189373,20.0,13.196,13.186,73.92]
[1672937190211,20.0,13.196,13.186,56.92]
[1672937193156,81.14394246,13.197,13.186,56.92]
[1672937193347,81.14394246,13.197,13.187,17.0]
[1672937194416,20.0,13.196,13.187,17.0]
[1672937195027,20.0,13.196,13.186,56.92]
[1672937195239,20.0,13.196,13.185,20.0]
[1672937195446,20.0,13.196,13.186,17.0]
[1672937197866,20.0,13.196,13.185,20.0]
[1672937201349,81.14394246,13.196,13.185,20.0]
[1672937201754,81.14394246,13.196,13.184,76.93]
[1672937201965,81.14394246,13.196,13.185,17.0]
[1672937202193,81.14394246,13.196,13.186,20.0]
[1672937203244,20.0,13.194,13.186,20.0]
[1672937203453,20.0,13.194,13.185,20.0]
[1672937206077,20.0,13.194,13.177,39.13455948]
[1672937206297,32.8,13.19,13.173,109.4133]
[1672937206598,6.52,13.18,13.173,109.4133]
[1672937206806,6.52,13.18,13.174,156.8859]
[1672937207425,6.52,13.18,13.175,20.0]
[1672937207635,56.92,13.187,13.175,20.0]
[1672937208074,60.09455085,13.186,13.174,156.8859]
[1672937208267,6.54,13.18,13.174,156.8859]
[1672937208889,6.54,13.18,13.175,17.0]
[1672937209123,20.0,13.185,13.175,17.0]
[1672937210055,20.0,13.185,13.176,20.0]
[1672937211859,20.0,13.183,13.176,20.0]
[1672937212170,20.0,13.183,13.175,20.0]
[1672937212576,20.0,13.181,13.175,20.0]
[1672937214485,17.0,13.182,13.175,20.0]
[1672937215219,17.0,13.182,13.168,57.0]
[1672937215439,6.54,13.18,13.169,20.0]
[1672937215619,32.67,13.18,13.17,56.99]
[1672937215832,32.67,13.18,13.171,20.0]
[1672937216569,32.67,13.18,13.17,20.0]
[1672937216775,32.67,13.18,13.169,20.0]
[1672937216992,32.67,13.18,13.17,56.99]
[1672937216993,99.34711872,13.18,13.17,56.99]
[1672937217323,99.34711872,13.18,13.167,110.0658]
[1672937217324,37.0,13.179,13.168,57.0]
[1672937217533,20.0,13.177,13.167,110.0658]
[1672937217726,17.0,13.176,13.167,110.0658]
[1672937218259,146.77166957,13.177,13.165,57.01]
[1672937218476,6.54,13.17,13.164,117.5307]
[1672937218682,86.67711872,13.177,13.166,20.0]
[1672937219090,32.64,13.18,13.167,57.0]
[1672937219304,32.64,13.18,13.168,20.0]
[1672937219512,32.64,13.18,13.169,56.99]
[1672937219737,32.64,13.18,13.17,17.0]
[1672937220874,32.64,13.18,13.169,17.0]
[1672937221297,77.83711872,13.186,13.169,17.0]
[1672937221298,57.83711872,13.186,13.17,56.99]
[1672937221501,165.5312,13.189,13.172,20.0]
[1672937221711,187.94857149,13.189,13.173,93.98]
[1672937221933,165.5312,13.189,13.174,20.0]
[1672937222262,108.6212,13.189,13.175,93.97]
[1672937222443,20.0,13.188,13.175,213.1832]
[1672937223623,42.41737149,13.188,13.175,213.1832]
[1672937223839,17.0,13.187,13.175,213.1832]
[1672937224040,20.0,13.186,13.175,213.1832]
[1672937224787,39.41737149,13.187,13.175,213.1832]
[1672937227827,22.41737149,13.187,13.175,213.1832]
[1672937228045,32.75,13.19,13.175,213.1832]
[1672937228355,55.16737149,13.19,13.176,20.0]
[1672937228566,55.16737149,13.19,13.177,73.96]
[1672937228782,55.16737149,13.19,13.178,20.0]
[1672937229089,55.16737149,13.19,13.179,73.95]
[1672937229827,113.00449021,13.19,13.179,17.0]
[1672937230143,113.00449021,13.19,13.178,17.0]
[1672937230885,20.0,13.189,13.178,17.0]
[1672937231185,22.41737149,13.188,13.177,17.0]
[1672937231401,22.41737149,13.188,13.178,56.96]
[1672937231619,22.41737149,13.188,13.179,17.0]
[1672937232240,22.41737149,13.188,13.178,17.0]
[1672937232455,22.41737149,13.188,13.178,73.96]
[1672937232876,22.41737149,13.188,13.178,17.0]
[1672937235067,89.65,13.19,13.178,20.0]
[1672937235274,89.65,13.19,13.18,20.0]
[1672937235275,6.58,13.19,13.18,20.0]
[1672937235486,6.58,13.19,13.181,73.94]
[1672937235919,28.99737149,13.19,13.179,56.95]
[1672937236235,32.86,13.19,13.179,56.95]
[1672937236641,22.41737149,13.189,13.177,56.96]
[1672937236857,22.41737149,13.189,13.178,17.0]
[1672937237184,20.0,13.187,13.177,56.96]
[1672937237393,20.0,13.187,13.175,139.2132]
[1672937237394,20.0,13.187,13.176,56.96]
[1672937237707,42.41737149,13.187,13.176,56.96]
[1672937238454,22.41737149,13.187,13.176,56.96]
[1672937238970,22.41737149,13.187,13.177,17.0]
[1672937240341,22.41737149,13.187,13.175,196.1832]
[1672937240653,22.41737149,13.187,13.176,17.0]
[1672937240841,22.41737149,13.187,13.177,20.0]
[1672937241052,22.41737149,13.187,13.176,37.0]
[1672937241707,22.41737149,13.187,13.176,17.0]
[1672937256332,76.92,13.186,13.175,20.0]
[1672937256540,20.0,13.184,13.175,20.0]
[1672937256963,22.41737149,13.183,13.175,20.0]
[1672937257377,22.41737149,13.183,13.175,19.90474106]
[1672937258976,20.0,13.184,13.175,19.90474106]